bitfinex/quotes_ETHUSD_20230105
["timestamp","ask_amount","ask_price","bid_price","bid_amount"]
[1672893277166,89.57010589,1254.2,1254.1,0.00092109]
[1672893279798,84.57010589,1254.2,1254.1,0.00092109]
[1672893280536,89.57010589,1254.2,1254.1,0.00092109]
[1672893283543,80.9476958,1254.2,1254.1,0.00092109]
[1672893284527,65.2382958,1254.2,1254.1,0.00092109]
[1672893284674,59.26577126,1254.2,1254.1,0.00092109]
[1672893285577,22.84614126,1254.2,1254.1,1.25292109]
[1672893285764,27.96626126,1254.2,1254.1,1.25292109]
[1672893285953,27.96626126,1254.2,1254.0,1.28932848]
[1672893285954,4.5,1254.1,1254.0,1.28932848]
[1672893286165,24.43682951,1254.1,1254.0,1.28932848]
[1672893286376,0.05748175,1254.1,1254.0,1.42261537]
[1672893286583,7.9733,1254.2,1254.0,1.42261537]
[1672893286584,0.05748175,1254.2,1254.0,1.42261537]
[1672893286793,16.40322277,1254.4,1254.0,1.42261537]
[1672893288270,16.40322277,1254.4,1254.0,5.92261537]
[1672893288486,16.40322277,1254.4,1254.0,1.47102079]
[1672893288696,16.40322277,1254.4,1254.0,1.42261537]
[1672893289252,28.36686171,1254.4,1254.0,1.42261537]
[1672893289674,28.36686171,1254.4,1254.0,25.34603537]
[1672893289675,12.42008228,1254.4,1254.0,25.34603537]
[1672893289891,12.42008228,1254.4,1254.0,25.39444079]
[1672893290413,0.45867277,1254.4,1254.0,25.39444079]
[1672893290579,0.40119102,1254.4,1254.0,25.39444079]
[1672893290933,26.75079175,1254.5,1254.0,25.39444079]
[1672893291152,30.73994126,1254.5,1254.0,25.39444079]
[1672893292255,4.5,1254.4,1254.0,25.39444079]
[1672893292610,24.43564894,1254.4,1254.0,1.47102079]
[1672893292836,32.46528069,1254.4,1254.0,4.42261537]
[1672893297216,38.24170027,1254.4,1254.0,4.42261537]
[1672893297427,23.91963,1254.2,1254.0,0.03732848]
[1672893297644,4.5,1254.1,1254.0,0.03732848]
[1672893297901,23.97711175,1254.2,1254.0,0.03732848]
[1672893300599,0.05748175,1254.2,1254.0,0.03732848]
[1672893300819,12.47321,1254.2,1254.0,0.03732848]
[1672893301089,12.53069175,1254.2,1254.0,0.03732848]
[1672893301396,8.03069175,1254.2,1254.0,0.03732848]
[1672893303286,8.43681424,1254.2,1254.0,0.03732848]
[1672893303604,24.38323424,1254.2,1254.0,0.03732848]
[1672893304179,16.41002424,1254.2,1254.0,0.03732848]
[1672893306707,24.38323424,1254.2,1254.0,0.03732848]
[1672893306967,16.41002424,1254.2,1254.0,0.03732848]
[1672893308064,4.5,1254.1,1254.0,0.03359584]
[1672893308275,24.38377424,1254.2,1254.0,0.03359584]
[1672893308489,29.04061762,1254.2,1254.0,0.03359584]
[1672893309035,4.5,1254.1,1254.0,0.03359584]
[1672893309223,20.44768,1254.1,1254.0,0.03359584]
[1672893309430,20.50516175,1254.1,1254.0,0.03359584]
[1672893309845,8.03132175,1254.1,1254.0,0.03359584]
[1672893310073,8.02787563,1254.1,1254.0,0.03359584]
[1672893315171,16.00171563,1254.1,1254.0,0.03359584]
[1672893315386,17.64243644,1254.1,1254.0,0.03359584]
[1672893315605,28.16393644,1254.1,1254.0,0.03359584]
[1672893317471,36.13777644,1254.1,1254.0,0.03359584]
[1672893317822,28.16393644,1254.1,1254.0,0.03359584]
[1672893318455,36.13777644,1254.1,1254.0,0.03359584]
[1672893319402,28.16393644,1254.1,1254.0,0.03359584]
[1672893320545,40.12692595,1254.1,1254.0,0.03359584]
[1672893321287,32.15308595,1254.1,1254.0,0.03359584]
[1672893324835,32.20308595,1254.1,1254.0,0.03359584]
[1672893325053,32.15308595,1254.1,1254.0,0.03359584]
[1672893328951,32.20308595,1254.1,1254.0,0.03359584]
[1672893329298,32.15308595,1254.1,1254.0,0.03359584]
[1672893330194,40.12692595,1254.1,1254.0,0.03359584]
[1672893330393,32.15308595,1254.1,1254.0,0.03359584]
[1672893330820,32.15308595,1254.1,1254.0,0.03114954]
[1672893331674,40.12692595,1254.1,1254.0,0.03114954]
[1672893331880,32.15308595,1254.1,1254.0,0.03114954]
[1672893333768,24.17924595,1254.1,1254.0,0.03114954]
[1672893336833,10.57898175,1254.1,1254.0,0.03114954]
[1672893337077,18.55282175,1254.1,1254.0,0.03114954]
[1672893337623,26.57666175,1254.1,1254.0,0.03114954]
[1672893338027,30.56581126,1254.1,1254.0,4.954e-05]
[1672893338195,21.73196,1254.0,1253.8,0.064]
[1672893338409,21.73196,1254.0,1253.6,0.00813838]
[1672893338410,4.81764951,1253.9,1253.6,0.00813838]
[1672893338782,4.5,1253.8,1253.6,0.00813838]
[1672893338995,16.0878,1253.8,1253.6,0.00813838]
[1672893339156,16.14528175,1253.8,1253.6,0.00813838]
[1672893340617,27.01338175,1253.8,1253.6,0.00813838]
[1672893340875,34.98917175,1253.8,1253.6,0.00813838]
[1672893342031,42.96496175,1253.8,1253.6,0.00813838]
[1672893344428,34.98917175,1253.8,1253.6,0.00813838]
[1672893344643,27.01338175,1253.8,1253.6,0.00813838]
[1672893345028,27.41883719,1253.8,1253.6,0.00813838]
[1672893345922,35.39470719,1253.8,1253.6,0.00813838]
[1672893347865,22.91883719,1253.8,1253.6,7.98504838]
[1672893348083,22.91883719,1253.8,1253.6,9.65960984]
[1672893349334,22.91883719,1253.8,1253.6,1.68269984]
[1672893349670,22.91883719,1253.8,1253.6,1.61669984]
[1672893350702,11.33103719,1253.8,1253.6,1.61669984]
[1672893350912,11.33103719,1253.8,1253.6,9.59351984]
[1672893351140,11.33103719,1253.8,1253.6,9.65951984]
[1672893354661,0.46293719,1253.8,1253.6,17.63630984]
[1672893354820,0.40545544,1253.8,1253.6,9.65932984]
[1672893355232,16.00812175,1253.9,1253.6,9.65932984]
[1672893356450,8.03274175,1253.9,1253.6,9.65932984]
[1672893356974,12.53274175,1253.9,1253.6,9.60932984]
[1672893357341,8.03274175,1253.9,1253.6,9.60932984]
[1672893359926,8.03274175,1253.9,1253.6,1.63269984]
[1672893360070,8.03274175,1253.9,1253.6,1.56669984]
[1672893364900,16.00809175,1253.9,1253.6,1.56669984]
[1672893369751,16.00809175,1253.9,1253.7,0.83925448]
[1672893370803,33.35132938,1253.9,1253.7,0.83925448]
[1672893371054,0.5986,1253.8,1253.7,0.83925448]
[1672893371262,24.52585,1253.8,1253.7,0.83925448]
[1672893371595,24.58333175,1253.8,1253.7,0.83925448]
[1672893373041,23.98473175,1253.8,1253.7,0.83925448]
[1672893373213,28.17736969,1253.8,1253.7,0.83925448]
[1672893375782,32.1665192,1253.8,1253.7,0.83925448]
[1672893376874,32.56642592,1253.8,1253.7,0.83925448]
[1672893378554,38.89866267,1253.8,1253.7,0.83925448]
[1672893380598,34.71142592,1253.8,1253.7,0.83925448]
[1672893380998,32.79642592,1253.8,1253.7,0.83925448]
[1672893381351,32.56642592,1253.8,1253.7,0.83602701]
[1672893385244,16.61492592,1253.8,1253.7,0.83602701]
[1672893385459,24.59067592,1253.8,1253.7,0.83602701]
[1672893386431,16.61492592,1253.8,1253.7,0.83602701]
[1672893387060,4.65002641,1253.8,1253.7,0.83602701]
[1672893387208,0.39990672,1253.8,1253.7,0.83602701]
[1672893387409,0.39990672,1253.8,1253.7,16.78878701]
[1672893387626,10.80748175,1253.9,1253.7,24.83116701]
[1672893388563,10.80748175,1253.9,1253.7,8.87840701]
[1672893388948,10.80748175,1253.9,1253.7,10.56389171]
[1672893389254,10.80748175,1253.9,1253.7,2.58751171]
[1672893389580,18.78265175,1253.9,1253.7,2.52151171]
[1672893389744,10.80748175,1253.9,1253.7,2.52151171]
[1672893391721,18.78264175,1253.9,1253.7,2.52151171]
[1672893393258,10.80748175,1253.9,1253.7,2.52151171]
[1672893399486,10.80748175,1253.9,1253.7,10.49786171]
[1672893399700,10.80748175,1253.9,1253.7,10.56386171]
[1672893403631,18.78276175,1253.9,1253.7,2.58751171]
[1672893403879,39.53201687,1253.9,1253.7,0.83238417]
[1672893404097,34.73315175,1253.9,1253.7,0.83238417]
[1672893405675,26.75787175,1253.9,1253.7,0.83238417]
[1672893406034,34.73315175,1253.9,1253.7,0.83238417]
[1672893411398,26.75787175,1253.9,1253.7,0.83238417]
[1672893411559,32.41409787,1253.9,1253.7,0.83238417]
[1672893411986,24.43881787,1253.9,1253.7,0.83238417]
[1672893413643,32.41392787,1253.9,1253.7,0.83238417]
[1672893415053,24.43881787,1253.9,1253.7,0.83238417]
[1672893422706,30.34296738,1253.9,1253.7,0.83238417]
[1672893422918,16.5501,1253.8,1253.7,0.83238417]
[1672893423129,21.11701216,1253.8,1253.7,0.83238417]
[1672893423360,29.09276216,1253.8,1253.7,0.83238417]
[1672893424183,29.09276216,1253.8,1253.7,0.82915028]
[1672893428223,29.48212147,1253.8,1253.7,0.82915028]
[1672893428592,33.47127098,1253.8,1253.7,0.82915028]
[1672893432793,35.38627098,1253.8,1253.7,0.82915028]
[1672893433051,35.61627098,1253.8,1253.7,0.82915028]
[1672893436638,11.68902098,1253.8,1253.7,0.82915028]
[1672893436847,11.45902098,1253.8,1253.7,0.82915028]
[1672893436997,19.43477098,1253.8,1253.7,0.82915028]
[1672893437208,5.55487147,1253.8,1253.7,0.82915028]
[1672893437458,0.44684106,1253.8,1253.7,0.82915028]
[1672893437684,0.38935931,1253.8,1253.7,0.82915028]
[1672893438015,17.06220787,1253.9,1253.7,0.82915028]
[1672893438225,21.05135738,1253.9,1253.7,0.82915028]
[1672893438371,29.02646738,1253.9,1253.7,0.82915028]
[1672893438989,37.00157738,1253.9,1253.7,0.82915028]
[1672893440689,29.02648738,1253.9,1253.7,0.82915028]
[1672893440940,14.79663126,1253.9,1253.7,0.82915028]
[1672893441109,10.80748175,1253.9,1253.7,8.80543028]
[1672893441327,10.80748175,1253.9,1253.7,8.87143028]
[1672893441889,10.85748175,1253.9,1253.7,8.87143028]
[1672893442040,10.80748175,1253.9,1253.7,8.87143028]
[1672893442775,10.80748175,1253.9,1253.7,8.87142028]
[1672893444414,10.80748175,1253.9,1253.7,0.89515028]
[1672893444629,10.80748175,1253.9,1253.7,0.82915028]
[1672893445980,10.85748175,1253.9,1253.7,0.82915028]
[1672893446149,10.80748175,1253.9,1253.7,0.82915028]
[1672893447064,15.30748175,1253.9,1253.7,0.82542474]
[1672893447938,10.80748175,1253.9,1253.7,0.82542474]
[1672893448727,15.60630987,1253.9,1253.7,0.82542474]
[1672893448895,23.58159987,1253.9,1253.7,0.82542474]
[1672893449560,31.55688987,1253.9,1253.7,0.82542474]
[1672893450826,23.58159987,1253.9,1253.7,0.82542474]
[1672893451338,23.58141987,1253.9,1253.7,0.82542474]
[1672893452797,31.55652987,1253.9,1253.7,0.82542474]
[1672893452968,35.54567938,1253.9,1253.7,0.82542474]
[1672893453141,48.30652613,1253.9,1253.7,0.82542474]
[1672893453760,44.11928938,1253.9,1253.7,0.82542474]
[1672893454341,5.752,1253.8,1253.7,0.82542474]
[1672893454565,34.72386069,1253.8,1253.7,0.82542474]
[1672893455859,26.74811069,1253.8,1253.7,0.82542474]
[1672893458035,22.24811069,1253.8,1253.7,0.82542474]
[1672893458717,14.27236069,1253.8,1253.7,0.82542474]
[1672893460659,14.67829191,1253.8,1253.7,0.82542474]
[1672893463176,22.65404191,1253.8,1253.7,0.82542474]
[1672893463600,14.67829191,1253.8,1253.7,0.82542474]
[1672893464229,22.65404191,1253.8,1253.7,0.82542474]
[1672893464384,14.67829191,1253.8,1253.7,0.82542474]
[1672893465230,22.65404191,1253.8,1253.7,0.82542474]
[1672893466388,14.67829191,1253.8,1253.7,0.82542474]
[1672893468167,14.67829191,1253.8,1253.7,0.8215544]
[1672893472799,22.65404191,1253.8,1253.7,0.8215544]
[1672893473569,40.71017817,1253.8,1253.7,0.8215544]
[1672893473781,36.75294142,1253.8,1253.7,0.8215544]
[1672893474007,41.53791715,1253.8,1253.7,0.8215544]
[1672893474690,41.58791715,1253.8,1253.7,0.8215544]
[1672893474904,41.53791715,1253.8,1253.7,0.8215544]
[1672893477651,40.93931715,1253.8,1253.7,0.8215544]
[1672893478279,40.93931715,1253.8,1253.7,0.6715544]
[1672893478894,40.93684491,1253.8,1253.7,0.6715544]
[1672893482991,32.96109491,1253.8,1253.7,0.6715544]
[1672893483972,40.93684491,1253.8,1253.7,0.6715544]
[1672893484740,24.98534491,1253.8,1253.7,0.6715544]
[1672893484880,40.93684491,1253.8,1253.7,0.6715544]
[1672893487146,32.96109491,1253.8,1253.7,0.6715544]
[1672893488604,0.69341297,1253.8,1253.7,0.6715544]
[1672893488833,0.40593122,1253.8,1253.7,8.6479344]
[1672893489043,0.40593122,1253.8,1253.7,8.7139344]
[1672893489214,11.40598175,1253.9,1253.7,16.6903144]
[1672893489429,15.39513126,1253.9,1253.7,16.6903144]
[1672893489634,15.39513126,1253.9,1253.7,16.86510729]
[1672893490054,11.40598175,1253.9,1253.7,8.88872729]
[1672893490267,10.80748175,1253.9,1253.7,19.34931802]
[1672893490482,10.80748175,1253.9,1253.7,27.32569802]
[1672893493335,10.80748175,1253.9,1253.7,19.34931802]
[1672893493740,10.80748175,1253.9,1253.7,3.39655802]
[1672893494104,26.75770175,1253.9,1253.7,3.33055802]
[1672893494323,18.78259175,1253.9,1253.7,0.84634729]
[1672893495721,18.78259175,1253.9,1253.7,0.6715544]
[1672893497055,10.80748175,1253.9,1253.7,0.6715544]
[1672893500918,10.80748175,1253.9,1253.7,0.66892406]
[1672893501090,15.30748175,1253.9,1253.7,0.66892406]
[1672893501726,18.78262175,1253.9,1253.7,0.66892406]
[1672893503683,10.80748175,1253.9,1253.7,0.66892406]
[1672893504211,10.80412162,1253.9,1253.7,0.66892406]
[1672893505153,18.77930162,1253.9,1253.7,0.66892406]
[1672893505480,10.80412162,1253.9,1253.7,0.66892406]
[1672893506406,18.77927162,1253.9,1253.7,0.66892406]
[1672893507587,18.77926162,1253.9,1253.7,0.66892406]
[1672893509599,10.80412162,1253.9,1253.7,0.66892406]
[1672893511306,26.75469162,1253.9,1253.7,0.66892406]
[1672893511459,30.55317752,1253.9,1253.7,0.66892406]
[1672893511927,38.52863752,1253.9,1253.7,0.66892406]
[1672893512453,34.73015162,1253.9,1253.7,0.66892406]
[1672893512826,26.75469162,1253.9,1253.7,0.66892406]
[1672893513239,18.77923162,1253.9,1253.7,0.66892406]
[1672893515291,10.80412162,1253.9,1253.7,8.64524406]
[1672893515509,10.80412162,1253.9,1253.7,8.71124406]
[1672893516875,10.80412162,1253.9,1253.7,11.97772247]
[1672893517398,10.80412162,1253.9,1253.7,19.95410247]
[1672893519196,10.80412162,1253.9,1253.7,11.97772247]
[1672893519492,10.80412162,1253.9,1253.7,8.71124406]
[1672893523460,10.80412162,1253.9,1253.7,0.73492406]
[1672893523675,10.80412162,1253.9,1253.7,0.66892406]
[1672893524097,18.77936162,1253.9,1253.7,0.66892406]
[1672893524498,18.77936162,1253.9,1253.7,0.66579346]
[1672893527334,23.73313207,1253.9,1253.7,0.66579346]
[1672893527601,43.86738556,1253.9,1253.7,0.66579346]
[1672893531241,35.89214556,1253.9,1253.7,0.66579346]
[1672893531490,43.86738556,1253.9,1253.7,0.66579346]
[1672893532380,35.89214556,1253.9,1253.7,0.66579346]
[1672893535484,27.91690556,1253.9,1253.7,0.66579346]
[1672893537870,19.94179556,1253.9,1253.7,0.66579346]
[1672893538183,19.94179556,1253.9,1253.7,8.64214346]
[1672893538184,15.75789207,1253.9,1253.7,8.64214346]
[1672893538373,15.75789207,1253.9,1253.7,8.70814346]
[1672893538583,19.94179556,1253.9,1253.7,8.70814346]
[1672893539268,15.75789207,1253.9,1253.7,8.70814346]
[1672893540323,15.75789207,1253.9,1253.7,0.73179346]
[1672893540535,15.75789207,1253.9,1253.7,0.66579346]
[1672893542605,10.80412162,1253.9,1253.7,16.61844346]
[1672893542811,10.80412162,1253.9,1253.7,16.68444346]
[1672893543022,10.80412162,1253.9,1253.7,24.66082346]
[1672893544204,10.80412162,1253.9,1253.7,16.68444346]
[1672893544559,10.80412162,1253.9,1253.7,19.45055881]
[1672893545080,10.80412162,1253.9,1253.7,11.47417881]
[1672893545311,10.80412162,1253.9,1253.7,8.70806346]
[1672893545759,10.80412162,1253.9,1253.7,0.73179346]
[1672893545970,10.80412162,1253.9,1253.7,0.66579346]
[1672893547230,10.80412162,1253.9,1253.7,8.64216346]
[1672893547461,10.80412162,1253.9,1253.7,8.70816346]
[1672893547670,10.80412162,1253.9,1253.7,8.70612822]
[1672893549795,10.80412162,1253.9,1253.7,0.72975822]
[1672893550008,10.80412162,1253.9,1253.7,0.66375822]
[1672893550718,10.80412162,1253.9,1253.7,8.64006822]
[1672893550930,10.80412162,1253.9,1253.7,8.70606822]
[1672893562939,10.85412162,1253.9,1253.7,8.70606822]
[1672893563156,10.80412162,1253.9,1253.7,8.70606822]
[1672893565399,10.80412162,1253.9,1253.7,0.72975822]
[1672893565611,10.80412162,1253.9,1253.7,0.66375822]
[1672893567102,10.85412162,1253.9,1253.7,0.66375822]
[1672893567272,10.80412162,1253.9,1253.7,0.66375822]
[1672893568726,10.80412162,1253.9,1253.7,8.64010822]
[1672893568981,10.80412162,1253.9,1253.7,8.70610822]
[1672893570048,15.30412162,1253.9,1253.7,8.70328646]
[1672893570414,10.80412162,1253.9,1253.7,8.70328646]
[1672893572482,10.80412162,1253.9,1253.7,0.72693646]
[1672893572681,10.80412162,1253.9,1253.7,0.66093646]
[1672893573411,14.98802511,1253.9,1253.7,0.66093646]
[1672893573624,10.80412162,1253.9,1253.7,0.66093646]
[1672893574045,10.80412162,1253.9,1253.7,8.63729646]
[1672893574197,10.80412162,1253.9,1253.7,8.70329646]
[1672893574947,14.98802511,1253.9,1253.7,8.70329646]
[1672893582408,14.98802511,1253.9,1253.7,0.72693646]
[1672893582613,14.98802511,1253.9,1253.7,0.66093646]
[1672893582614,19.48620056,1253.9,1253.7,0.66093646]
[1672893585193,19.48620056,1253.9,1253.7,8.63731646]
[1672893585355,19.48620056,1253.9,1253.7,8.70331646]
[1672893585767,19.48620056,1253.9,1253.7,0.72693646]
[1672893585977,19.48620056,1253.9,1253.7,0.66093646]
[1672893588299,19.48620056,1253.9,1253.7,8.63718646]
[1672893588508,19.48620056,1253.9,1253.7,8.70318646]
[1672893590517,19.48620056,1253.9,1253.7,8.69952101]
[1672893591293,19.48620056,1253.9,1253.7,0.72327101]
[1672893591502,19.48620056,1253.9,1253.7,0.65727101]
[1672893593145,19.48620056,1253.9,1253.7,8.63349101]
[1672893593378,14.98802511,1253.9,1253.7,8.69949101]
[1672893597557,14.98403144,1253.9,1253.7,8.69949101]
[1672893601809,14.98403144,1253.9,1253.7,0.72327101]
[1672893601810,22.95932144,1253.9,1253.7,0.72327101]
[1672893602126,22.95932144,1253.9,1253.7,0.65727101]
[1672893602298,29.54650365,1253.9,1253.7,0.65727101]
[1672893602654,21.57121365,1253.9,1253.7,0.65727101]
[1672893603723,29.54634365,1253.9,1253.7,0.65727101]
[1672893611659,25.36244016,1253.9,1253.7,0.65727101]
[1672893611875,22.95916144,1253.9,1253.7,0.65727101]
[1672893612349,18.77525795,1253.9,1253.7,0.65727101]
[1672893613558,22.95916144,1253.9,1253.7,0.65727101]
[1672893614766,14.98403144,1253.9,1253.7,0.65727101]
[1672893620211,14.98403144,1253.9,1253.7,0.65493966]
[1672893620427,20.77367665,1253.9,1253.7,0.65493966]
[1672893626701,20.77367665,1253.9,1253.7,8.63122966]
[1672893626951,20.77367665,1253.9,1253.7,8.69722966]
[1672893626952,10.80012795,1253.9,1253.7,8.69722966]
[1672893627325,10.80012795,1253.9,1253.7,0.72093966]
[1672893627689,14.98403144,1253.9,1253.7,0.65493966]
[1672893628487,10.80012795,1253.9,1253.7,0.65493966]
[1672893630602,14.98403144,1253.9,1253.7,0.65493966]
[1672893630814,10.80012795,1253.9,1253.7,0.65493966]
[1672893631374,14.98403144,1253.9,1253.7,0.65493966]
[1672893631689,10.80012795,1253.9,1253.7,0.65493966]
[1672893632135,14.98403144,1253.9,1253.7,0.65493966]
[1672893632303,10.80012795,1253.9,1253.7,0.65493966]
[1672893632515,14.98403144,1253.9,1253.7,0.65493966]
[1672893632937,10.80012795,1253.9,1253.7,0.65493966]
[1672893633140,14.98403144,1253.9,1253.7,0.65493966]
[1672893633461,10.80012795,1253.9,1253.7,0.65493966]
[1672893634387,14.98403144,1253.9,1253.7,0.65493966]
[1672893636329,21.07678153,1253.9,1253.7,0.65493966]
[1672893637510,16.89287804,1253.9,1253.7,0.65493966]
[1672893642659,16.89287804,1253.9,1253.6,19.84354952]
[1672893642877,10.80012795,1253.9,1253.6,19.84354952]
[1672893643775,15.30012795,1253.9,1253.6,19.84051304]
[1672893644133,10.80012795,1253.9,1253.6,19.84051304]
[1672893644353,14.98403144,1253.9,1253.6,19.84051304]
[1672893644969,10.80012795,1253.9,1253.6,19.84051304]
[1672893646407,10.80012795,1253.9,1253.6,11.86377304]
[1672893647332,10.80012795,1253.9,1253.6,15.77081585]
[1672893650204,14.98403144,1253.9,1253.6,15.77081585]
[1672893650396,10.80012795,1253.9,1253.6,15.77081585]
[1672893650609,14.98403144,1253.9,1253.6,15.77081585]
[1672893651071,10.80012795,1253.9,1253.6,15.77081585]
[1672893651262,14.98403144,1253.9,1253.6,15.77081585]
[1672893652133,10.80012795,1253.9,1253.6,15.77081585]
[1672893653376,14.98403144,1253.9,1253.6,15.77081585]
[1672893653590,10.80012795,1253.9,1253.6,15.77081585]
[1672893656441,10.80012795,1253.9,1253.6,31.72485585]
[1672893663519,10.85012795,1253.9,1253.6,31.72485585]
[1672893663730,10.80012795,1253.9,1253.6,31.72485585]
[1672893664361,10.80012795,1253.9,1253.6,23.74783585]
[1672893668167,10.80012795,1253.9,1253.6,23.744026]
[1672893670073,10.80012795,1253.9,1253.6,31.721046]
[1672893670854,10.80012795,1253.9,1253.6,23.744026]
[1672893671746,10.85012795,1253.9,1253.6,23.744026]
[1672893671980,10.80012795,1253.9,1253.6,23.744026]
[1672893673391,10.80012795,1253.9,1253.6,15.767006]
[1672893673704,26.75046795,1253.9,1253.6,7.790306]
[1672893675367,34.72569795,1253.9,1253.6,7.790306]
[1672893676269,26.75046795,1253.9,1253.6,7.790306]
[1672893676485,18.77523795,1253.9,1253.6,15.767276]
[1672893678015,18.77523795,1253.9,1253.6,7.790306]
[1672893678169,18.77523795,1253.9,1253.6,3.88326319]
[1672893678170,34.72569795,1253.9,1253.6,3.88326319]
[1672893678534,38.90960144,1253.9,1253.6,3.81726319]
[1672893681371,38.90960144,1253.9,1253.6,0.82410952]
[1672893681885,38.91180087,1253.9,1253.6,0.82410952]
[1672893684049,30.93657087,1253.9,1253.6,0.82410952]
[1672893684299,37.22598496,1253.9,1253.6,0.82410952]
[1672893687020,45.20121496,1253.9,1253.6,0.82410952]
[1672893687225,37.22598496,1253.9,1253.6,0.82410952]
[1672893688939,37.22598496,1253.9,1253.6,0.82094551]
[1672893696693,45.20121496,1253.9,1253.6,0.82094551]
[1672893700530,0.05,1253.8,1253.6,0.82094551]
[1672893700696,12.47581,1253.8,1253.6,0.82094551]
[1672893700909,8.03329175,1253.8,1253.6,0.82094551]
[1672893702361,12.1350809,1253.8,1253.6,0.82094551]
[1672893702835,8.03067462,1253.8,1253.6,0.82094551]
[1672893703387,16.00648462,1253.8,1253.6,0.82094551]
[1672893703520,16.60508462,1253.8,1253.6,0.82094551]
[1672893705836,16.99663422,1253.8,1253.6,0.82094551]
[1672893706414,9.02082422,1253.8,1253.6,0.82094551]
[1672893706582,13.63979396,1253.8,1253.6,0.82094551]
[1672893708773,5.66660109,1253.8,1253.6,0.82094551]
[1672893711251,13.64235109,1253.8,1253.6,0.82094551]
[1672893711671,21.61810109,1253.8,1253.6,0.82094551]
[1672893714370,29.59385109,1253.8,1253.6,0.82094551]
[1672893715516,21.61810109,1253.8,1253.6,0.82094551]
[1672893717263,29.59385109,1253.8,1253.6,0.82094551]
[1672893717559,28.99525109,1253.8,1253.6,0.82094551]
[1672893720971,21.01950109,1253.8,1253.6,0.82094551]
[1672893721181,33.17915458,1253.8,1253.6,0.82094551]
[1672893724929,33.17915458,1253.8,1253.6,0.81854198]
[1672893725282,28.99525109,1253.8,1253.6,0.81854198]
[1672893728327,21.01950109,1253.8,1253.6,0.81854198]
[1672893728746,13.04375109,1253.8,1253.6,0.81854198]
[1672893729648,21.01950109,1253.8,1253.6,0.81854198]
[1672893735259,28.99525109,1253.8,1253.6,0.81854198]
[1672893742624,33.17915458,1253.8,1253.6,0.81854198]
[1672893745012,35.09515458,1253.8,1253.6,0.81854198]
[1672893745229,39.08430409,1253.8,1253.6,0.81854198]
[1672893745574,30.02904349,1253.7,1253.6,0.81854198]
[1672893745789,35.47870078,1253.7,1253.6,0.81854198]
[1672893747680,35.47970078,1253.7,1253.6,0.81854198]
[1672893748485,35.48190021,1253.7,1253.6,0.81854198]
[1672893749333,31.29799672,1253.7,1253.6,0.81541387]
[1672893759433,35.51714623,1253.7,1253.6,0.81541387]
[1672893764827,9.67100623,1253.7,1253.6,0.81541387]
[1672893765091,17.41738623,1253.7,1253.6,0.81541387]
[1672893765337,9.44100623,1253.7,1253.6,0.81541387]
[1672893767300,17.41738623,1253.7,1253.6,0.81541387]
[1672893767507,9.44100623,1253.7,1253.6,0.81541387]
[1672893767990,17.41738623,1253.7,1253.6,0.81541387]
[1672893769085,9.44100623,1253.7,1253.6,0.81541387]
[1672893769307,0.05748175,1253.7,1253.6,0.81541387]
[1672893769667,18.53164135,1253.8,1253.6,0.81541387]
[1672893769832,26.50763135,1253.8,1253.6,0.81541387]
[1672893770238,26.55763135,1253.8,1253.6,0.81541387]
[1672893770449,26.50763135,1253.8,1253.6,0.81541387]
[1672893772969,16.40093135,1253.8,1253.6,0.81331071]
[1672893778130,8.42494135,1253.8,1253.6,0.81331071]
[1672893779477,16.40093135,1253.8,1253.6,0.81331071]
[1672893781325,19.80878571,1253.8,1253.6,0.81331071]
[1672893782353,16.40093135,1253.8,1253.6,0.81331071]
[1672893790173,8.42494135,1253.8,1253.6,0.81331071]
[1672893790317,0.44903135,1253.8,1253.6,0.81331071]
[1672893790528,0.3915496,1253.8,1253.6,8.79033071]
[1672893790898,36.76685738,1253.9,1253.6,0.87931071]
[1672893791118,10.80012795,1253.9,1253.6,24.74474189]
[1672893791260,10.80012795,1253.9,1253.7,3.0]
[1672893791474,10.80012795,1253.9,1253.8,23.92725]
[1672893791732,10.80012795,1253.9,1253.8,23.99325]
[1672893792059,10.80012795,1253.9,1253.8,19.58995878]
[1672893792577,10.80012795,1253.9,1253.8,11.61420878]
[1672893792787,10.80012795,1253.9,1253.8,3.63845878]
[1672893793002,10.80012795,1253.9,1253.8,3.57245878]
[1672893794577,10.80012795,1253.9,1253.7,11.79708782]
[1672893799680,10.80012795,1253.9,1253.7,11.79426427]
[1672893800159,10.80012795,1253.9,1253.7,3.81844427]
[1672893800322,10.80012795,1253.9,1253.7,3.75244427]
[1672893801824,10.80012795,1253.9,1253.7,11.72872427]
[1672893802035,10.80012795,1253.9,1253.7,16.96856113]
[1672893803210,10.80012795,1253.9,1253.7,32.92132113]
[1672893803631,10.80012795,1253.9,1253.7,36.91047064]
[1672893803844,10.80012795,1253.9,1253.7,36.90847064]
[1672893804152,10.80012795,1253.9,1253.7,36.91047064]
[1672893810928,10.80012795,1253.9,1253.7,28.93409064]
[1672893813319,10.80012795,1253.9,1253.7,28.95445064]
[1672893813493,10.80012795,1253.9,1253.7,36.93083064]
[1672893821657,10.80012795,1253.9,1253.7,36.92708804]
[1672893821815,10.80012795,1253.9,1253.7,28.95070804]
[1672893822026,10.80012795,1253.9,1253.7,20.97432804]
[1672893822876,10.80012795,1253.9,1253.7,28.95070804]
[1672893823237,10.80012795,1253.9,1253.7,36.90672804]
[1672893823599,10.80012795,1253.9,1253.7,28.93034804]
[1672893824266,10.80012795,1253.9,1253.7,36.90672804]
[1672893824859,0.05748175,1253.9,1253.8,31.97658633]
[1672893825074,10.7551,1254.1,1253.9,5.630338]
[1672893825075,10.8211,1254.1,1253.9,5.630338]
[1672893825280,10.8211,1254.1,1254.0,23.92344]
[1672893825557,10.8211,1254.1,1254.0,23.98944]
[1672893826178,10.8211,1254.1,1254.0,27.97858951]
[1672893826414,10.8211,1254.1,1254.0,29.96866387]
[1672893827597,0.066,1254.1,1254.0,32.96866387]
[1672893827861,10.51328228,1254.3,1254.0,32.96866387]
[1672893828032,10.57928228,1254.3,1254.1,3.98914951]
[1672893828385,10.57928228,1254.3,1254.2,7.97321]
[1672893828612,10.57928228,1254.3,1254.2,1.318]
[1672893828917,10.57928228,1254.3,1254.2,1.252]
[1672893829062,0.53508228,1254.3,1254.2,1.252]
[1672893829278,0.46908228,1254.3,1254.2,1.252]
[1672893829524,0.46908228,1254.3,1254.1,0.066]
[1672893829695,0.46908228,1254.3,1254.0,21.00443436]
[1672893829907,0.46908228,1254.3,1254.1,7.97384]
[1672893830155,0.46908228,1254.3,1254.1,8.03984]
[1672893831065,0.46908228,1254.3,1254.1,11.33658239]
[1672893831819,0.46908228,1254.3,1254.1,31.2734119]
[1672893832058,0.46908228,1254.3,1254.1,23.2995719]
[1672893834739,0.46908228,1254.3,1254.1,31.2734119]
[1672893836345,0.46908228,1254.3,1254.1,23.2995719]
[1672893836612,0.46511413,1254.3,1254.1,31.2734119]
[1672893837039,0.46511413,1254.3,1254.1,23.2995719]
[1672893837207,0.46511413,1254.3,1254.1,31.2734119]
[1672893837606,0.46511413,1254.3,1254.1,23.2995719]
[1672893837870,0.05959386,1254.3,1254.1,23.2995719]
[1672893838246,0.05959386,1254.3,1254.2,3.98914951]
[1672893838464,0.05959386,1254.3,1254.2,29.78587398]